bitfinex-derivatives/quotes_BTCF0:USTF0_20251002
["timestamp","ask_amount","ask_price","bid_price","bid_amount"]
[1759419508824,0.86743002,119290.0,119280.0,0.4797142]
[1759419509120,0.1058938,119300.0,119290.0,0.0837774]
[1759419509326,1.2317283,119310.0,119300.0,0.1189004]
[1759419509515,0.1058883,119310.0,119300.0,0.1189004]
[1759419509717,0.8709283,119310.0,119300.0,0.1189004]
[1759419510220,0.4666763,119320.0,119310.0,0.0837631]
[1759419510520,0.1058763,119320.0,119310.0,0.03513]
[1759419510723,0.1058831,119310.0,119300.0,0.53961202]
[1759419511830,0.1118831,119310.0,119300.0,0.53961202]
[1759419512325,0.02812,119310.0,119300.0,0.53961202]
[1759419512624,0.1058831,119310.0,119300.0,0.53961202]
[1759419512826,0.1088831,119310.0,119300.0,0.53961202]
[1759419513124,0.02512,119310.0,119300.0,0.53961202]
[1759419514426,0.1088833,119310.0,119300.0,0.53961202]
[1759419515220,0.003,119310.0,119300.0,0.53961202]
[1759419515727,0.1088832,119310.0,119300.0,0.4796955]
[1759419516227,0.1088832,119310.0,119300.0,0.53956706]
[1759419518330,0.02512,119310.0,119300.0,0.53956706]
[1759419518525,0.003,119310.0,119300.0,0.53956706]
[1759419519624,0.1088835,119310.0,119300.0,0.53956706]
[1759419520432,0.02512,119310.0,119300.0,0.53956706]
[1759419520628,0.003,119310.0,119300.0,0.53956706]
[1759419521033,0.003,119310.0,119300.0,0.93956706]
[1759419521836,0.003,119310.0,119300.0,1.70412706]
[1759419522025,0.105877,119320.0,119310.0,0.1188933]
[1759419522220,0.105877,119320.0,119310.0,0.4796933]
[1759419523134,0.93679127,119330.0,119320.0,0.1188862]
[1759419523330,1.29113954,119330.0,119320.0,0.1188862]
[1759419524228,1.34400019,119330.0,119320.0,0.1188862]
[1759419525123,1.34376019,119330.0,119320.0,0.1188862]
[1759419525330,1.34876019,119330.0,119320.0,0.1188862]
[1759419525830,1.34872019,119330.0,119320.0,0.1188862]
[1759419526242,1.34672019,119330.0,119320.0,0.1188862]
[1759419526537,0.873194,119330.0,119320.0,0.1188862]
[1759419526831,1.28040292,119330.0,119320.0,0.1188862]
[1759419528736,0.873194,119330.0,119320.0,0.1188862]
[1759419528934,1.28040292,119330.0,119320.0,0.1188862]
[1759419529238,0.51608292,119330.0,119320.0,0.1188862]
[1759419529438,1.28032292,119330.0,119320.0,0.1188862]
[1759419530441,1.29354292,119330.0,119320.0,0.1052062]
[1759419532934,1.29354292,119330.0,119320.0,0.0837562]
[1759419533343,1.29354292,119330.0,119320.0,0.1052062]
[1759419534039,0.886334,119330.0,119320.0,0.1052062]
[1759419534240,1.29354292,119330.0,119320.0,0.1052062]
[1759419537744,0.886334,119330.0,119320.0,0.1052062]
[1759419538040,0.1195262,119320.0,119310.0,0.52702466]
[1759419538237,0.51668102,119320.0,119310.0,0.52702466]
[1759419538636,0.51668102,119320.0,119310.0,0.52702486]
[1759419538832,0.51668102,119320.0,119310.0,0.16622486]
[1759419539332,1.28216102,119320.0,119310.0,0.16622486]
[1759419539536,0.1195335,119310.0,119300.0,0.54070686]
[1759419540247,0.52674242,119310.0,119300.0,0.54070686]
[1759419540541,0.1066635,119310.0,119300.0,0.54070686]
[1759419540849,0.8700235,119310.0,119300.0,0.54070686]
[1759419541437,0.52674242,119310.0,119300.0,0.52702686]
[1759419541643,0.51387242,119310.0,119300.0,0.54293686]
[1759419541944,0.8703435,119310.0,119300.0,0.54493686]
[1759419542748,0.1066635,119310.0,119300.0,0.54493686]
[1759419543342,0.0229,119310.0,119300.0,0.54493686]
[1759419543547,0.1066594,119320.0,119310.0,0.1202627]
[1759419543744,0.8702194,119320.0,119310.0,0.1202627]
[1759419543944,1.29029832,119320.0,119310.0,0.02259]
[1759419544146,0.1195327,119310.0,119300.0,0.55944628]
[1759419544347,0.1066627,119310.0,119300.0,0.55944628]
[1759419544647,0.1066627,119310.0,119300.0,0.55544628]
[1759419545351,0.1066627,119310.0,119300.0,0.55744628]
[1759419545844,0.1066627,119310.0,119300.0,0.4830653]
[1759419546146,0.52674162,119310.0,119300.0,0.4691553]
[1759419546443,0.44540507,119310.0,119300.0,0.54411711]
[1759419546843,0.44540507,119310.0,119300.0,0.09954701]
[1759419547247,1.20892507,119310.0,119300.0,0.09954701]
[1759419547446,1.20892507,119310.0,119300.0,0.11345701]
[1759419548240,0.09660739,119310.0,119300.0,0.19722791]
[1759419548451,0.09660739,119310.0,119300.0,0.55802791]
[1759419548754,1.18603976,119310.0,119300.0,0.55802791]
[1759419549451,1.18599976,119310.0,119300.0,0.55802791]
[1759419550242,1.18599976,119310.0,119300.0,0.19722791]
[1759419550444,1.19597976,119310.0,119300.0,0.19722791]
[1759419550644,1.19597976,119310.0,119300.0,0.09954701]
[1759419550843,1.19597976,119310.0,119300.0,0.18331791]
[1759419551438,0.42247976,119310.0,119300.0,0.19722791]
[1759419551640,0.77628469,119310.0,119300.0,0.55802791]
[1759419551854,0.77628469,119310.0,119300.0,0.88390028]
[1759419551855,0.01284469,119310.0,119300.0,0.88390028]
[1759419552048,1.19605197,119320.0,119310.0,0.1202635]
[1759419552348,0.43253197,119320.0,119310.0,0.19522035]
[1759419552544,0.1066596,119320.0,119310.0,0.88189272]
[1759419552748,0.8472796,119320.0,119310.0,0.88189272]
[1759419552955,1.17315197,119320.0,119310.0,0.88189272]
[1759419553152,0.40963197,119320.0,119310.0,0.88189272]
[1759419553556,0.43453197,119320.0,119310.0,0.88189272]
[1759419553748,0.35077237,119320.0,119310.0,0.88189272]
[1759419553950,0.002,119320.0,119310.0,1.69157684]
[1759419554451,0.002,119320.0,119310.0,1.3719159]
[1759419554853,0.00404,119320.0,119310.0,1.3719159]
[1759419555051,0.00404,119320.0,119310.0,1.47602674]
[1759419555252,4e-05,119320.0,119310.0,1.47602674]
[1759419555458,4e-05,119320.0,119310.0,1.48602674]
[1759419556854,4e-05,119320.0,119310.0,1.44246609]
[1759419557153,4e-05,119320.0,119310.0,0.57487525]
[1759419557360,0.02294,119320.0,119310.0,0.57487525]
[1759419557548,0.02294,119320.0,119310.0,1.33831525]
[1759419557754,0.02294,119320.0,119310.0,1.41315871]
[1759419557954,4e-05,119320.0,119310.0,1.7453159]
[1759419558155,0.52197358,119340.0,119330.0,0.1063394]
[1759419558350,0.52197358,119340.0,119330.0,0.4671394]
[1759419559254,0.51368765,119340.0,119330.0,0.4810494]
[1759419559455,0.02494,119340.0,119330.0,0.4810494]
[1759419559761,0.8719224,119340.0,119330.0,0.4810494]
[1759419560256,0.8719224,119340.0,119330.0,0.4810495]
[1759419560561,0.8719224,119340.0,119330.0,0.4671395]
[1759419560562,0.8847924,119340.0,119330.0,0.4671395]
[1759419560761,1.29183305,119340.0,119330.0,0.4671395]
[1759419561154,1.29183305,119340.0,119330.0,0.02259]
[1759419561762,1.30023229,119340.0,119330.0,0.02259]
[1759419562255,0.1195198,119330.0,119320.0,0.481052]
[1759419562454,0.1066498,119330.0,119320.0,0.481052]
[1759419562954,0.1066498,119330.0,119320.0,0.120252]
[1759419563159,0.51369045,119330.0,119320.0,0.120252]
[1759419563359,0.51369045,119330.0,119320.0,0.122252]
[1759419563662,0.1066498,119330.0,119320.0,0.124252]
[1759419564257,0.51369045,119330.0,119320.0,0.124252]
[1759419564860,0.51369045,119330.0,119320.0,0.485052]
[1759419565962,0.1066498,119330.0,119320.0,0.485052]
[1759419566256,0.52656045,119330.0,119320.0,0.38739]
[1759419566462,0.92656045,119330.0,119320.0,0.004]
[1759419566655,1.28736045,119330.0,119320.0,0.004]
[1759419572668,2.05024045,119330.0,119320.0,0.004]
[1759419573367,1.28736045,119330.0,119320.0,0.004]
[1759419573666,2.05024045,119330.0,119320.0,0.004]
[1759419574366,2.29490788,119330.0,119320.0,0.004]
[1759419575061,2.62076192,119330.0,119320.0,0.004]
[1759419575362,0.1173132,119310.0,119300.0,0.07487282]
[1759419575661,0.1202007,119300.0,119290.0,0.07487282]
[1759419575860,0.79323704,119300.0,119290.0,0.07487282]
[1759419576055,1.11909108,119300.0,119290.0,0.07487282]
[1759419576260,2.60782512,119300.0,119290.0,0.07487282]
[1759419576662,1.51909108,119300.0,119290.0,0.07487282]
[1759419576857,1.51909108,119300.0,119290.0,0.10801282]
[1759419577064,2.28197108,119300.0,119290.0,0.10801282]
[1759419577668,2.28197108,119300.0,119290.0,0.18179002]
[1759419577669,1.92117108,119300.0,119290.0,0.18179002]
[1759419577965,0.74508108,119300.0,119290.0,0.19442002]
[1759419578263,1.50792108,119300.0,119290.0,0.19442002]
[1759419578467,1.18214704,119300.0,119290.0,0.4803472]
[1759419578968,1.50800108,119300.0,119290.0,0.4893472]
[1759419579165,0.41922704,119300.0,119290.0,0.4893472]
[1759419579372,1.18214704,119300.0,119290.0,0.81520124]
[1759419579870,1.18218704,119300.0,119290.0,0.81520124]
[1759419581272,1.18218704,119300.0,119290.0,0.4893472]
[1759419581468,1.18218704,119300.0,119290.0,0.81520124]
[1759419582367,4e-05,119300.0,119290.0,0.81520124]
[1759419582564,0.32589404,119300.0,119290.0,0.81520124]
[1759419582865,1.11187404,119300.0,119290.0,0.81520124]
[1759419583070,1.11187404,119300.0,119290.0,0.4893472]
[1759419583374,1.19564434,119300.0,119290.0,0.4893472]
[1759419583867,0.43288434,119300.0,119290.0,0.4893472]
[1759419584068,1.17238434,119300.0,119290.0,0.4893472]
[1759419584377,1.19560434,119300.0,119290.0,0.81520124]
[1759419585575,0.43288434,119300.0,119290.0,0.81520124]
[1759419585868,1.52141838,119300.0,119290.0,0.4893472]
[1759419586274,1.19560758,119300.0,119290.0,0.4893472]
[1759419587070,0.8697103,119300.0,119290.0,0.4893472]
[1759419587274,1.19560758,119300.0,119290.0,0.4893472]
[1759419587776,1.19560758,119300.0,119290.0,0.56422002]
[1759419587971,0.43292758,119300.0,119290.0,0.56422002]
[1759419588173,1.19560758,119300.0,119290.0,0.56422002]
[1759419588671,1.11187728,119300.0,119290.0,0.56422002]
[1759419589578,0.02326,119300.0,119290.0,0.56422002]
[1759419589877,0.78598,119300.0,119290.0,0.56422002]
[1759419590070,0.07374759,119310.0,119300.0,0.0837701]
[1759419590271,0.1069807,119320.0,119310.0,0.1195331]
[1759419590478,0.02322,119320.0,119310.0,0.4803331]
[1759419590673,0.80196374,119340.0,119330.0,0.119519]
[1759419590979,1.56468374,119340.0,119330.0,0.119519]
[1759419591171,0.80196374,119340.0,119330.0,0.119519]
[1759419591374,1.20388374,119340.0,119330.0,0.119519]
[1759419592073,1.20788374,119340.0,119330.0,0.119519]
[1759419592275,0.11926646,119340.0,119330.0,0.119519]
[1759419592580,1.20788374,119340.0,119330.0,0.119519]
[1759419592879,1.19958218,119340.0,119330.0,0.119519]
[1759419593074,1.19558218,119340.0,119330.0,0.119519]
[1759419593276,1.19958218,119340.0,119330.0,0.119519]
[1759419594883,0.02726,119340.0,119330.0,0.119519]
[1759419595075,0.02726,119340.0,119330.0,0.80621628]
[1759419595281,0.78994,119340.0,119330.0,0.80621628]
[1759419595482,0.00404,119340.0,119330.0,1.20621628]
[1759419596177,0.00404,119340.0,119330.0,1.96885628]
[1759419596484,0.00404,119340.0,119330.0,2.05265399]
[1759419596679,0.00404,119340.0,119330.0,1.29001399]
[1759419596977,0.00404,119340.0,119330.0,2.11990258]
[1759419597385,4e-05,119360.0,119350.0,0.1199452]
[1759419597579,4e-05,119360.0,119350.0,1.16744248]
[1759419597781,4e-05,119360.0,119350.0,1.6041452]
[1759419597986,4e-05,119360.0,119350.0,1.93004248]
[1759419598186,4e-05,119360.0,119350.0,1.93828197]
[1759419599086,4e-05,119360.0,119350.0,2.02206564]
[1759419599287,4e-05,119360.0,119350.0,2.42206564]
[1759419599587,4e-05,119370.0,119360.0,0.1199383]
[1759419599790,1.20560282,119400.0,119390.0,0.03621]
[1759419599993,1.24890018,119400.0,119390.0,0.03621]
[1759419600293,0.46118018,119400.0,119390.0,0.1199173]
[1759419600488,0.52954754,119400.0,119390.0,0.4807173]
[1759419600683,0.04333736,119400.0,119390.0,0.80661458]
[1759419601284,4e-05,119400.0,119390.0,0.80661458]
[1759419601688,0.02213894,119400.0,119390.0,0.80661458]
[1759419602290,4e-05,119400.0,119390.0,0.4807173]
[1759419602992,0.03122,119400.0,119390.0,0.4807173]
[1759419603187,0.04122,119400.0,119390.0,0.4807173]
[1759419603593,0.02004,119400.0,119390.0,0.4807173]
[1759419603787,4e-05,119400.0,119390.0,0.4807173]
[1759419603988,0.00804,119400.0,119390.0,0.4807173]
[1759419604187,0.02922,119400.0,119390.0,1.2431573]
[1759419605090,0.02922,119400.0,119390.0,0.4807173]
[1759419605292,0.1129202,119400.0,119390.0,0.4807173]
[1759419605488,0.00804,119400.0,119390.0,0.4807173]
[1759419605682,0.00804,119400.0,119390.0,1.2431173]
[1759419605994,0.02922,119400.0,119390.0,1.2430773]
[1759419606695,0.02922,119400.0,119390.0,0.4807173]
[1759419606896,0.1129204,119400.0,119390.0,1.2432373]
[1759419607194,0.02922,119400.0,119390.0,1.2432373]
[1759419608190,0.1129204,119400.0,119390.0,1.2431973]
[1759419608782,0.1129204,119400.0,119390.0,0.4807173]
[1759419608988,0.47920151,119400.0,119390.0,0.1199173]
[1759419609287,0.48838165,119400.0,119390.0,0.1199173]
[1759419609487,0.13497054,119400.0,119390.0,0.1199173]
[1759419609694,0.02922,119400.0,119390.0,0.4807173]
[1759419610093,0.00804,119400.0,119390.0,0.4807173]
[1759419612802,0.00804,119400.0,119390.0,0.83412841]
[1759419613188,0.00804,119400.0,119390.0,0.4807173]
[1759419613994,0.00804,119400.0,119390.0,0.48917288]
[1759419614189,0.00804,119400.0,119390.0,1.24258399]
[1759419616500,0.083725,119430.0,119420.0,0.0836861]
[1759419616697,0.104905,119430.0,119420.0,0.1198961]
[1759419616996,0.104905,119430.0,119420.0,0.1198963]
[1759419617392,0.17067153,119430.0,119420.0,0.1198963]
[1759419617902,0.0836864,119420.0,119410.0,0.4807005]
[1759419618106,0.47107751,119420.0,119410.0,0.39701]
[1759419618405,0.87107751,119420.0,119410.0,0.4807034]
[1759419618703,0.1048734,119410.0,119400.0,0.119907]
[1759419618903,0.45828451,119410.0,119400.0,0.119907]
[1759419619797,0.1048734,119410.0,119400.0,0.119907]
[1759419620296,0.1058734,119410.0,119400.0,0.119907]
[1759419621006,0.02418,119410.0,119400.0,0.480707]
[1759419621202,0.003,119410.0,119400.0,0.480707]
[1759419621401,0.003,119410.0,119400.0,0.83411811]
[1759419621595,0.003,119410.0,119400.0,0.480707]
[1759419621801,0.1078732,119410.0,119400.0,1.242787]
[1759419622004,0.02418,119410.0,119400.0,1.242787]
[1759419622201,0.1078732,119410.0,119400.0,1.242787]
[1759419622705,0.02418,119410.0,119400.0,1.242787]
[1759419624808,0.34946101,119410.0,119400.0,1.242787]
[1759419625201,0.43315431,119410.0,119400.0,0.480707]
[1759419625508,0.43315431,119410.0,119400.0,1.480707]
[1759419625710,0.34946101,119410.0,119400.0,1.480707]
[1759419627108,0.43315451,119410.0,119400.0,1.480707]
[1759419627904,0.34946101,119410.0,119400.0,1.480707]
[1759419628308,0.02418,119410.0,119400.0,1.480707]
[1759419628510,0.43315391,119410.0,119400.0,1.480707]
[1759419629602,0.34946101,119410.0,119400.0,1.480707]
[1759419629803,0.003,119410.0,119400.0,1.80598801]
[1759419630602,0.003,119410.0,119400.0,2.53126902]
[1759419630903,0.003,119410.0,119400.0,2.6150176]
[1759419631302,4e-05,119430.0,119420.0,0.1201063]
[1759419631502,0.02294,119430.0,119420.0,0.80618731]
[1759419631902,4e-05,119430.0,119420.0,0.80618731]
[1759419632704,4e-05,119430.0,119420.0,0.8144122]
[1759419633306,0.01604,119430.0,119420.0,0.8144122]
[1759419633614,0.03894,119430.0,119420.0,0.48913119]
[1759419633808,0.03894,119430.0,119420.0,0.8144122]
[1759419634112,0.01604,119430.0,119420.0,0.8144122]
[1759419636312,0.00504,119430.0,119420.0,0.8144122]
[1759419636499,0.01004,119430.0,119420.0,0.8144122]
[1759419636906,4e-05,119430.0,119420.0,0.8144122]
[1759419637213,4e-05,119430.0,119420.0,0.8164122]
[1759419637406,4e-05,119430.0,119420.0,1.5783722]
[1759419637611,4e-05,119430.0,119420.0,0.8164122]
[1759419637812,4e-05,119430.0,119420.0,1.9391722]
[1759419638413,4e-05,119430.0,119420.0,0.85193119]
[1759419638612,4e-05,119430.0,119420.0,1.9391722]
[1759419640215,0.43185371,119440.0,119430.0,0.1200993]
[1759419640420,0.43185371,119440.0,119430.0,0.4808993]
[1759419641812,0.43385371,119440.0,119430.0,0.4808993]
[1759419642506,0.0249,119440.0,119430.0,0.4808993]
[1759419642712,0.35018101,119440.0,119430.0,0.4808993]
[1759419643012,0.0229,119440.0,119430.0,0.4808993]
[1759419643217,0.49900058,119450.0,119440.0,0.1200923]
[1759419643412,0.49900058,119450.0,119440.0,0.4808923]
[1759419643821,0.41533528,119450.0,119440.0,0.4808923]
[1759419644016,0.0229,119460.0,119450.0,0.1200853]
[1759419644214,0.0229,119460.0,119450.0,0.4808853]
[1759419644520,0.1065583,119460.0,119450.0,0.4808853]
[1759419644718,0.43183931,119460.0,119450.0,0.4808853]
[1759419645111,0.1065583,119460.0,119450.0,0.4808853]
[1759419645308,0.43183931,119460.0,119450.0,0.4808853]
[1759419645508,0.43183931,119460.0,119450.0,0.1200853]
[1759419645815,0.83556446,119460.0,119450.0,0.02286]
[1759419646007,0.1065659,119450.0,119440.0,0.480888]
[1759419646214,0.43184691,119450.0,119440.0,0.480888]
[1759419646515,0.1065659,119450.0,119440.0,0.480888]
[1759419646814,0.43184691,119450.0,119440.0,0.480888]
[1759419647213,0.43384691,119450.0,119440.0,0.480888]
[1759419648319,0.4336474,119450.0,119440.0,0.480888]
[1759419649922,0.4336874,119450.0,119440.0,0.480888]
[1759419652618,0.4336874,119450.0,119440.0,0.8059695]
[1759419653323,0.4336874,119450.0,119440.0,0.480888]
[1759419653824,0.4336874,119450.0,119440.0,0.8059695]
[1759419654819,0.4336874,119450.0,119440.0,0.480888]
[1759419655127,0.4336874,119450.0,119440.0,0.8059695]
[1759419655819,0.4336874,119450.0,119440.0,0.480888]
[1759419656024,0.4336874,119450.0,119440.0,0.8059695]
[1759419656323,0.3500215,119450.0,119440.0,0.8059695]
[1759419657426,0.4336873,119450.0,119440.0,0.480888]
[1759419657623,0.4336873,119450.0,119440.0,0.8059695]
[1759419659423,0.3500215,119450.0,119440.0,0.8059695]
[1759419659820,0.4336874,119450.0,119440.0,0.8059695]
[1759419660128,0.02494,119450.0,119440.0,0.8059695]
[1759419660330,0.3500215,119450.0,119440.0,0.8059695]
[1759419660729,0.02494,119450.0,119440.0,0.8059695]
[1759419660929,0.3500215,119450.0,119440.0,0.8059695]
[1759419661522,0.00204,119450.0,119440.0,1.131051]
[1759419661931,0.00204,119450.0,119440.0,1.892731]
[1759419662428,0.00204,119450.0,119440.0,2.37645154]
[1759419663332,0.00204,119450.0,119440.0,1.61477154]
[1759419663530,0.00204,119450.0,119440.0,2.37641154]
[1759419663725,4e-05,119450.0,119440.0,2.37641154]
[1759419663927,4e-05,119450.0,119440.0,2.37741154]
[1759419664131,4e-05,119450.0,119440.0,1.61577154]
[1759419664332,4e-05,119450.0,119440.0,2.37741154]
[1759419665931,4e-05,119450.0,119440.0,2.43683124]
[1759419666232,4e-05,119470.0,119460.0,0.1189783]
[1759419666429,4e-05,119470.0,119460.0,2.2523413]
[1759419667226,4e-05,119470.0,119460.0,1.6021783]
[1759419667527,4e-05,119470.0,119460.0,2.2523413]
[1759419667723,4e-05,119470.0,119460.0,1.4907413]
[1759419667935,4e-05,119470.0,119460.0,2.2523413]
[1759419668137,4e-05,119470.0,119460.0,1.4907413]
[1759419668328,0.00204,119470.0,119460.0,1.4907413]
[1759419668824,0.00204,119470.0,119460.0,2.26091499]
[1759419669936,0.4316472,119500.0,119490.0,0.1189579]
[1759419670136,0.4316472,119500.0,119490.0,0.4440394]
[1759419670436,0.4316472,119500.0,119490.0,0.1189579]
[1759419670837,0.7567287,119500.0,119490.0,0.1189579]
[1759419671032,0.7647287,119500.0,119490.0,0.1189579]
[1759419671233,0.77313137,119500.0,119490.0,0.03532]
[1759419671835,0.77313137,119500.0,119490.0,0.1189571]
[1759419672530,0.77313137,119500.0,119490.0,0.03532]
[1759419672730,0.77313137,119500.0,119490.0,0.1189578]
[1759419672731,1.13393137,119500.0,119490.0,0.1189578]
[1759419672934,1.20211456,119500.0,119490.0,0.1189578]
[1759419674832,0.84131456,119500.0,119490.0,0.1189578]
[1759419676234,0.4396472,119500.0,119490.0,0.4440393]
[1759419676447,0.4396472,119500.0,119490.0,0.8048393]
[1759419676448,0.1145604,119500.0,119490.0,0.8048393]
[1759419676636,0.4396419,119500.0,119490.0,0.8048393]
[1759419676836,0.3560115,119500.0,119490.0,0.8048393]
[1759419677035,0.008,119500.0,119490.0,0.8048393]
[1759419677340,0.1065542,119510.0,119500.0,0.1189504]
[1759419677531,0.4316357,119510.0,119500.0,0.4440319]
[1759419677932,0.4316357,119510.0,119500.0,0.1189504]
[1759419678139,0.1065542,119510.0,119500.0,0.1189504]
[1759419678439,0.4316357,119510.0,119500.0,0.1189504]
[1759419679035,0.4356357,119510.0,119500.0,0.1189504]
[1759419679338,0.1065609,119500.0,119490.0,0.4797541]
[1759419679539,0.76522549,119500.0,119490.0,0.4797541]
[1759419680638,0.76722549,119500.0,119490.0,0.4797541]
[1759419682639,0.7587239,119500.0,119490.0,0.4797541]
[1759419682941,0.7587239,119500.0,119490.0,0.8048356]
[1759419683136,0.4336424,119500.0,119490.0,0.4797541]
[1759419683536,0.4336424,119500.0,119490.0,0.8048356]
[1759419685142,0.4336424,119500.0,119490.0,0.4797541]
[1759419685341,0.4336424,119500.0,119490.0,1.5661556]
[1759419686337,0.1085609,119500.0,119490.0,1.5661556]
[1759419686532,0.4336424,119500.0,119490.0,1.5661556]
[1759419686734,0.1085609,119500.0,119490.0,1.5661556]
[1759419686935,0.4336424,119500.0,119490.0,1.5661556]
[1759419687646,0.4336424,119500.0,119490.0,1.2410741]
[1759419687844,0.4336424,119500.0,119490.0,1.5661556]
[1759419688236,0.3270815,119500.0,119490.0,1.5661556]
[1759419688438,0.002,119500.0,119490.0,2.29949769]
[1759419688646,4e-05,119520.0,119510.0,0.1182634]
[1759419688844,4e-05,119520.0,119510.0,1.5296664]
[1759419689043,4e-05,119520.0,119510.0,1.2045849]
[1759419689240,4e-05,119520.0,119510.0,1.8904664]
[1759419689446,4e-05,119520.0,119510.0,1.5653849]
[1759419689647,0.00704,119520.0,119510.0,1.5653849]
[1759419689844,0.00704,119520.0,119510.0,1.8904664]
[1759419690046,0.00704,119520.0,119510.0,2.0490564]
[1759419690247,0.00704,119520.0,119510.0,0.9627349]
[1759419690452,0.00704,119520.0,119510.0,2.0490564]
[1759419690453,4e-05,119520.0,119510.0,2.0490564]
[1759419690744,0.3491315,119520.0,119510.0,1.2402634]
[1759419690950,0.3491315,119520.0,119510.0,1.5653449]
[1759419691745,0.02405,119520.0,119510.0,1.5653449]
[1759419691947,0.3271215,119520.0,119510.0,1.5673449]
[1759419692148,0.3251215,119520.0,119510.0,1.5673449]
[1759419692454,0.3251215,119520.0,119510.0,1.2462634]
[1759419692754,0.3251215,119520.0,119510.0,1.5713049]
[1759419692954,4e-05,119520.0,119510.0,1.5713049]
[1759419693553,0.1056522,119540.0,119530.0,0.1182492]
[1759419693755,0.77686254,119540.0,119530.0,0.8794092]
[1759419694060,0.36817884,119540.0,119530.0,1.5652907]
[1759419694356,0.34616884,119540.0,119530.0,1.5652907]
[1759419694753,0.10468994,119540.0,119530.0,1.2402092]
[1759419695255,0.10768994,119540.0,119530.0,1.2402092]
[1759419695550,0.11068994,119540.0,119530.0,1.2402092]
[1759419695854,0.76085294,119540.0,119530.0,1.2402092]
[1759419696251,0.7398056,119540.0,119530.0,1.2402092]
[1759419696858,0.00604,119540.0,119530.0,1.5652907]
[1759419698356,0.3471315,119540.0,119530.0,1.2400892]
[1759419698551,0.3471315,119540.0,119530.0,0.8041307]
[1759419698757,0.3471315,119540.0,119530.0,1.2400492]
[1759419698967,0.3471315,119540.0,119530.0,1.5651307]
[1759419699154,0.02205,119540.0,119530.0,1.5651307]
[1759419699554,0.3471315,119540.0,119530.0,1.5651307]
[1759419700057,0.02205,119540.0,119530.0,1.5651307]
[1759419700750,0.3471315,119540.0,119530.0,1.5651307]
[1759419701754,0.3471315,119540.0,119530.0,1.2400492]
[1759419701952,0.3471315,119540.0,119530.0,1.5651307]
[1759419702154,4e-05,119540.0,119530.0,1.5651307]
[1759419702459,4e-05,119540.0,119530.0,1.2400492]
[1759419702655,4e-05,119540.0,119530.0,1.5650507]
[1759419703958,1.00004,119550.0,119530.0,1.5650507]
[1759419704157,0.3249245,119550.0,119540.0,1.4542874]
[1759419704363,0.2549245,119550.0,119540.0,1.8542874]
[1759419704558,0.2549245,119550.0,119540.0,1.94703305]
[1759419704864,0.2549245,119550.0,119540.0,2.03069055]
[1759419705251,0.2579245,119550.0,119540.0,2.03069055]
[1759419705656,0.2579245,119550.0,119540.0,1.70560905]
[1759419706160,0.2549245,119550.0,119540.0,1.71460905]
[1759419706566,0.2549245,119550.0,119540.0,2.03369055]
[1759419707063,0.2549245,119550.0,119540.0,2.03069055]
[1759419707257,0.2549245,119550.0,119540.0,2.80053055]
[1759419707665,0.2549245,119550.0,119540.0,1.82528605]
[1759419707860,0.2549245,119550.0,119540.0,2.47544905]
[1759419708065,0.2684045,119550.0,119540.0,1.30183905]
[1759419708265,0.2904145,119550.0,119540.0,0.88337217]
[1759419708459,0.2904145,119550.0,119540.0,1.64417217]
[1759419708653,0.2904145,119550.0,119540.0,1.71037982]
[1759419709064,0.2684045,119550.0,119540.0,1.71037982]
[1759419709569,0.2684045,119550.0,119540.0,1.71037982]
[1759419709762,0.2684045,119550.0,119540.0,1.38593805]
[1759419710062,0.2684045,119550.0,119540.0,1.71037982]
[1759419710360,0.2549245,119550.0,119540.0,1.71037982]
[1759419710564,0.24489041,119550.0,119540.0,1.71037982]
[1759419710966,0.25837041,119550.0,119540.0,1.71029982]
[1759419711154,0.28038041,119550.0,119540.0,1.71029982]
[1759419711359,0.28038041,119550.0,119540.0,0.62513805]
[1759419711554,0.28038041,119550.0,119540.0,1.62664232]
[1759419712265,0.28038041,119550.0,119540.0,1.30220055]
[1759419712562,0.28038041,119550.0,119540.0,1.62664232]
[1759419713663,0.28038041,119550.0,119540.0,0.54148055]
[1759419713976,1.08841808,119550.0,119540.0,0.3698]
[1759419714162,1.41285985,119550.0,119540.0,0.76972]
[1759419714365,1.08841808,119550.0,119540.0,0.76972]
[1759419714767,1.44921808,119550.0,119540.0,0.76972]
[1759419714964,1.44921808,119550.0,119540.0,0.009]
[1759419714965,1.77365985,119550.0,119540.0,0.009]
[1759419715162,0.0970891,119530.0,119520.0,1.2050913]
[1759419715465,0.0970891,119530.0,119520.0,1.52953307]
[1759419716272,0.0970891,119530.0,119520.0,1.2140913]
[1759419716569,0.01348,119530.0,119520.0,1.2140913]
[1759419717267,0.01348,119530.0,119520.0,1.2050913]
[1759419718170,0.0970893,119530.0,119520.0,1.2100913]
[1759419718376,0.5190993,119530.0,119520.0,0.3658]
[1759419718766,0.5190993,119530.0,119520.0,0.4494163]
[1759419719873,0.43549,119530.0,119520.0,0.4494163]
[1759419720566,0.42545351,119530.0,119520.0,0.4511963]
[1759419721173,0.02545351,119530.0,119520.0,0.4511963]
[1759419721369,0.00344351,119530.0,119520.0,0.4511963]
[1759419721570,0.02554351,119530.0,119520.0,0.4511963]
[1759419722468,0.01348,119540.0,119520.0,0.4511963]
[1759419722664,0.25837041,119550.0,119540.0,0.0853821]
[1759419722866,0.25837041,119550.0,119540.0,0.4461821]
[1759419723277,0.28047041,119550.0,119540.0,0.4461821]
[1759419723575,0.36406561,119550.0,119540.0,0.4461821]
[1759419723976,0.36606561,119550.0,119540.0,0.4461821]
[1759419724279,0.28247041,119550.0,119540.0,0.4461821]
[1759419724681,0.28047041,119550.0,119540.0,0.4511821]
[1759419725674,0.36406541,119550.0,119540.0,0.4511821]
[1759419725879,0.36406541,119550.0,119540.0,0.451182]
[1759419726074,0.36406541,119550.0,119540.0,1.211902]
[1759419726978,0.28047041,119550.0,119540.0,1.211902]
[1759419727581,0.25837041,119550.0,119540.0,1.211902]
[1759419727880,0.25837041,119550.0,119540.0,1.56456116]
[1759419728682,0.24489041,119550.0,119540.0,1.64821166]
[1759419728881,0.24489041,119550.0,119540.0,2.04821166]
[1759419729377,0.07094961,119550.0,119540.0,2.19511952]
[1759419729577,0.01272,119550.0,119540.0,2.13620846]
[1759419729775,0.01272,119550.0,119540.0,2.19571952]
[1759419729975,0.01272,119550.0,119540.0,1.43439952]
[1759419730280,0.01272,119550.0,119540.0,1.86363234]
[1759419730482,0.01272,119550.0,119540.0,2.20412128]
[1759419730672,0.00268749,119550.0,119540.0,2.30823212]
[1759419731473,0.00268749,119550.0,119540.0,2.20412128]
[1759419732678,9e-08,119560.0,119550.0,0.0835956]
[1759419732882,9e-08,119560.0,119550.0,0.79705476]
[1759419733080,9e-08,119560.0,119550.0,2.05294444]
[1759419733270,9e-08,119560.0,119550.0,1.37443494]
[1759419733475,9e-08,119560.0,119550.0,2.13655494]